Cogmind - Beta 13 @@@ ROGUE MODE // 2024.04.03 @ 18:15:44 Player: Jake from State Farm Result: Destroyed by G-47 Trooper with Particle Gun Performance ------------- Evolutions (0) 0 Regions Visited (1) 200 Robots Destroyed (9) 45 Value Destroyed (234) 234 Prototype IDs (0) 0 Alien Tech Used (0) 0 Bonus (0) 0 TOTAL SCORE: 479 Bonus ------- None Cogmind --------- Core Integrity 0/250 Matter 237/300 Energy 100/100 System Corruption 0% Temperature Cool (14) Movement Rolling (115) Ox1 Location -10/Materials Parts ------- > --- POWER (1) -------- (None) > --- PROPULSION (2) --- Compact Wheel Compact Wheel > --- UTILITY (2) ------ Small Storage Unit High-capacity Storage Unit > --- WEAPON (2) ------- Light Assault Rifle Light Assault Rifle > --- INVENTORY (20) --- Light Ion Engine Light Ion Engine Aluminum Leg Aluminum Leg Flight Unit Flight Unit Flight Unit Heat Sink EM Pulse Gun Small Laser Datajack Peak State ------------ > --- POWER ------------ Ion Engine > --- PROPULSION ------- Compact Wheel Compact Wheel > --- UTILITY ---------- Small Storage Unit High-capacity Storage Unit > --- WEAPON ----------- Assault Rifle Assault Rifle > --- INVENTORY -------- Light Ion Engine Aluminum Leg Aluminum Leg [Rating: 7] Favorites ----------- Power Ion Engine Engine Ion Engine Propulsion Compact Wheel Leg Aluminum Leg Wheel Compact Wheel Flight Unit Flight Unit Utility Small Storage Unit Storage Small Storage Unit Weapon Assault Rifle Energy Gun EM Pulse Gun Ballistic Gun Assault Rifle Build | -11 -10 ------- Run | Yrd Mat Slots Evolved . | . . Power . | . . Propulsion . | . . Utility . | . . Weapon . | . . Parts Attached 17 | 7 10 Power 1 | . 1 Engine 1 | . 1 Core . | . . Reactor . | . . Propulsion 8 | 4 4 Treads . | . . Leg 2 | 2 . Wheel 4 | 2 2 Hover . | . . Flight 2 | . 2 Utility 2 | 1 1 Device . | . . Storage 2 | 1 1 Processor . | . . Hackware . | . . Protection . | . . Artifact . | . . Weapon 6 | 2 4 Energy Gun 2 | . 2 Energy Cannon . | . . Ballistic Gun 4 | 2 2 Ballistic Cannon . | . . Launcher . | . . Special Weapon . | . . Impact Weapon . | . . Slashing Weapon . | . . Piercing Weapon . | . . Special Melee Weapon . | . . Unidentified Prototypes . | . . Parts Lost 3 | . 3 Power 1 | . 1 Propulsion . | . . Utility . | . . Weapon 2 | . 2 Highest Loss Streak 3 | . 3 To Critical Strikes . | . . Average Slot Usage (%) 94 | . 94 Engine 10 | . 10 Wheel 27 | . 27 Storage 28 | . 28 Energy Gun 3 | . 3 Ballistic Gun 22 | . 22 Naked Turns . | . . Heaviest Build 54 | 9 54 Greatest Support 32 | 32 32 Greatest Overweight (x) 1 | . 1 Average Overweight (x) . | . . Largest Inventory Capacity 20 | 8 20 Average Capacity 17 | 7 19 Most Carried 11 | 5 11 Average Carried 5 | 2 6 Final Capacity 20 | 8 20 Final Carried 11 | 4 11 Class Distribution -------------------- 100% | Mutant Dominant Class ---------------- Mutant | -10/Materials Resources | -11 -10 ----------- Run | Yrd Mat Matter Collected 437 | 222 215 Remotely . | . . Salvage Created 215 | . 215 Parts 17 | . 17 Haulers Intercepted . | . . Recyclers Shooed 1 | . 1 Parts Field Recycled . | . . Retrieved Matter . | . . Parts Self-Destructed . | . . Prevented . | . . Kills | -11 -10 ------- Run | Yrd Mat Combat Hostiles Destroyed 8 | . 8 Guns 5 | . 5 AOE 3 | . 3 Classes Destroyed 3 | . 3 Worker 1 | . 1 Swarmer 3 | . 3 Grunt 5 | . 5 Best Kill Streak 3 | . 3 Combat Bots Only 3 | . 3 Max Kills in Single Turn 2 | . 2 Gunslinging 1 | . 1 Exploded 2 | . 2 Melee . | . . Uniques/NPCs Destroyed . | . . Combat | -11 -10 -------- Run | Yrd Mat Hostile Shots Fired 67 | . 67 Missed 17 | . 17 Damage Taken 687 | . 687 Core 251 | . 251 Absorbed by Shields . | . . Core Remaining (%) 100 | 100 . Volleys Fired 38 | . 38 Largest 2 | . 2 Hottest 40 | . 40 Shots Fired 67 | . 67 Gun 67 | . 67 Cannon . | . . Launcher . | . . Special . | . . Kinetic 59 | . 59 Thermal . | . . Explosive . | . . Electromagnetic 8 | . 8 Robot Hit Streak 6 | . 6 Robot Miss Streak 5 | . 5 Penetration Max . | . . Secondary Targets 2 | . 2 Max Gunslinging Chain 1 | . 1 Shots Hit Robots 30 | . 30 Core Hits 16 | . 16 Critical Kills . | . . Critical Parts Destroyed . | . . Critical Strikes . | . . Melee Attacks . | . . Impact . | . . Slashing . | . . Piercing . | . . Sneak Attacks . | . . Combat Hostiles . | . . Follow-up Attacks . | . . Damage Inflicted 741 | . 741 Guns 413 | . 413 Cannons . | . . Explosions 326 | . 326 Melee . | . . Ramming 2 | . 2 Kinetic 361 | . 361 Thermal 326 | . 326 Explosive . | . . Electromagnetic 52 | . 52 Impact . | . . Slashing . | . . Piercing . | . . Highest Corruption . | . . Average Corruption . | . . Corruption Purged . | . . Corruption Blocked . | . . Overload Shots . | . . Overflow Damage 58 | . 58 Projectiles . | . . Explosions 58 | . 58 Melee . | . . Knockbacks . | . . Impact . | . . Kinetic . | . . Secondary . | . . Self-Inflicted Damage 64 | . 64 Shots 1 | . 1 Rammed 1 | . 1 Targets Rammed 1 | . 1 Kicked . | . . Crushed . | . . Highest Temperature 42 | . 42 Average Temperature 15 | . 15 Received Heat Transfer 372 | . 372 Siege Activations . | . . Robots Corrupted . | . . Combat Hostiles . | . . Parts Fried . | . . Impact Corruptions . | . . Robots Melted . | . . Combat Hostiles . | . . Parts Melted . | . . Heat Transferred 200 | . 200 Parts Sabotaged . | . . Parts Stolen . | . . Parts Stripped . | . . Power Chain Reactions 1 | . 1 Alert | -11 -10 ------- Run | Yrd Mat Peak Influence 248 | . 248 Initial . | . . Average 80 | . 94 Maximum Alert Level 1 | . 1 Low Security (%) 79 | 100 75 Level 1 20 | . 24 Level 2 . | . . Level 3 . | . . Level 4 . | . . Level 5 . | . . High Security . | . . Max Security . | . . Squads Dispatched 1 | . 1 Investigation 1 | . 1 Extermination . | . . Reinforcement . | . . Assault . | . . Garrison . | . . Intercept . | . . Searches Triggered . | . . Construction Impeded . | . . Haulers Reinforced . | . . Active Scanning Responses . | . . Cargo Convoy Interrupts . | . . Stealth | -11 -10 --------- Run | Yrd Mat Distress Signals 1 | . 1 Communications Jammed . | . . Distress Signals . | . . Times Spotted 13 | . 13 Peak Tracking Total 4 | . 4 Tactical Retreats . | . . Traps | -11 -10 ------- Run | Yrd Mat Traps Triggered 1 | . 1 Indirectly . | . . Trap Hack Attempts . | . . Triggered . | . . Disarmed . | . . Reprogrammed . | . . Reused . | . . Traps Extracted . | . . Installed . | . . Triggered . | . . Machines | -11 -10 ---------- Run | Yrd Mat Machines Disabled 2 | . 2 Max in Single Turn 2 | . 2 Machines Repaired . | . . Machines Dismantled . | . . Machines Sabotaged . | . . Overloaded Fab Kills . | . . Hacking | -11 -10 --------- Run | Yrd Mat Machines Accessed 1 | . 1 Terminals 1 | . 1 Fabricators . | . . Repair Stations . | . . Recycling Units . | . . Scanalyzers . | . . Garrison Access . | . . Total Hacks 2 | . 2 Successful 1 | . 1 Failed 1 | . 1 Catastrophic . | . . Database Lockouts . | . . Manual . | . . Terminals 2 | . 2 Fabricators . | . . Repair Stations . | . . Recycling Units . | . . Scanalyzers . | . . Garrison Access . | . . Terminal Hacks 1 | . 1 Zone Layout 1 | . 1 Fabricator Hacks . | . . Repair Station Hacks . | . . Recycling Unit Hacks . | . . Scanalyzer . | . . Garrison Access Hacks . | . . Unauthorized Hacks . | . . Terminals . | . . Fabricators . | . . Repair Stations . | . . Recycling Units . | . . Scanalyzers . | . . Garrison Access . | . . Data Cores Recovered . | . . Used . | . . Hacking Detections . | . . Full Trace Events . | . . Feedback Events . | . . Feedback Blocked . | . . Robot Schematics Acquired . | . . Robots Built . | . . Authchips . | . . Time . | . . Total Robot Build Rating . | . . Part Schematics Acquired . | . . Parts Built . | . . Authchips . | . . Time . | . . Total Part Build Rating . | . . Parts Repaired . | . . Time . | . . Parts Recycled . | . . Recycled Matter . | . . Retrieved Matter . | . . Retrieved Components . | . . Parts Scanalyzed . | . . Part Schematics Acquired . | . . Parts Damaged . | . . Bothacking | -11 -10 ------------ Run | Yrd Mat Used RIF Installer . | . . Robots Hacked . | . . Non-combat . | . . Combat . | . . Robot Hacks Applied . | . . Relay Couplers Released . | . . Fabnet Peak Effective % . | . . Robots Rewired . | . . Allies Hacked . | . . Hacks Repelled . | . . Allies | -11 -10 -------- Run | Yrd Mat Total Allies . | . . Largest Group . | . . Highest-Rated Group . | . . Highest-Rated Ally . | . . Total Orders . | . . Ally Attacks . | . . Total Damage . | . . Kills . | . . Allies Corrupted . | . . Allies Melted . | . . Intel | -11 -10 ------- Run | Yrd Mat Robot Analysis Total . | . . Derelict Logs Recovered . | . . Drone Launches . | . . Drone Recoveries . | . . Exploration | -11 -10 ------------- Run | Yrd Mat Turns Passed 449 | 69 380 Spaces Moved 277 | 55 222 Core 13 | 13 . Treads . | . . Legs 19 | 19 . Wheels 245 | 23 222 Hover . | . . Flight . | . . Fastest Speed 50 | 50 100 Average Speed 110 | 95 114 Slowest Speed 120 | 120 115 Overloaded Moves . | . . Propulsion Burnouts . | . . Robots Hopped . | . . Cave-ins Triggered . | . . Exploration Rate (%) 19 | 4 34 Regions Visited 1 Branch Regions . Pre-discovered Areas . | . . Known Exits Taken . | . . Unknown Exits Taken 1 | 1 . Scrap Searched . | . . Spaces Dug . | . . Terrain Destroyed 25 | . 25 Melee . | . . Projectile . | . . AOE 25 | . 25 Terrain Rammed . | . . Walls Destroyed . | . . Machines Disabled . | . . Actions | -11 -10 --------- Run | Yrd Mat Total 352 | 70 282 Wait . | . . Move 276 | 54 222 Hop . | . . Pick Up 20 | 9 11 Fast Attach . | . . Attach 9 | 5 4 Detach . | . . Swap 8 | 2 6 Drop . | . . Fire 38 | . 38 Melee . | . . Ram 1 | . 1 Kick . | . . Crush . | . . Escape Stasis . | . . Rewire . | . . Trap . | . . Miscellaneous . | . . Route ------- -11/Scrapyard -10/Materials History --------- Turn | Location | Event 2 | -11/Scrapyard | Met Revision 17 10 | -11/Scrapyard | Discovered new exit (range 15) 70 | -11/Scrapyard | Entered Materials 309 | -10/Materials | Build established: Mutant 353 | -10/Materials | Core integrity fell below 50% 388 | -10/Materials | Lost 3 parts (1p2w) 444 | -10/Materials | Core integrity fell below 20% 450 | -10/Materials | Destroyed by G-47 Trooper with Particle Gun Last Messages --------------- U-05 Engineer lays Concrete. Acquired 22 matter. U-05 Engineer lays Concrete. Acquired Corrupted Heat Sink. U-05 Engineer lays Concrete. U-05 Engineer builds a Wall. Acquired Lgt. Assault Rifle. R-06 Scavenger collects Lgt. Assault Rifle. R-06 Scavenger collects Flight Unit. K-01 Serf cleans the Purification Channel. Purification Channel disabled. Disabling or destroying stationary machines or terrain requires that a single hit meet or exceed the object's Armor value. Inspect machines by right-clicking on them, and walls via Ctrl-RMB (or as any other object in keyboard mode). Hovering the cursor over an object also shows its Armor in the Scan window. M-13 Machinist repairs G-47 Trooper. Map ----- +----------------------------------------------------+ | ?????????????????????????????????????????????????? | | ?????????????????????????????????????????????????? | | ?????????????????????????????????????????????????? | | ????????????????????????? ?????????????????????? | | ????????????????????????" ?????????????????????? | | ???????????????????? ???" ?????????????????????? | | ???????????????????? ?"" ?????????????????????? | | ????????????????????? """ #????????????????????? | | ??????????????????? " #????????????????????? | | ??????????????????? #??????????????###+##? | | ???????????????????? #?????????????? ?? | | ????????????????????? " #?????????????? ?? | | ???????????????????"? """k #?????????????? ?? | | ??????????????????? "" m #??????????????# #?? | | ?????????????????""" """g #??????????????# #?? | | ????????????????? "" " g #??????????????# +?? | | ?????????????????""" """ ################ # | | ????????????? ? """ """ +[= # # | | ??????????? """ """ ##### = """# # " | | ?????????? " " #???#[! """# # " | | ?????????? #???# """# # " | | ?????????? #???# + # | | ?????????? ##### #???# """# # | | ???????????? ??#???# #???# """# ##### | | ??????????????#????#???# #???# """# #???? | | ???????????????????????# @ #???# # #???? | | ?????????????????????####/###+#???########## #???? | | ?????????????????????# #????????????# #???? | | ?????????????????????# """ ########?????# #???? | | ?????????????????????# """ # #?????# #???? | | ?????????????????????# """ # "" ####### ##### | | ?????????????????????# # T" + + | | ?????????????????????# """ # "" ######### | | ?????????????????????# """ # #???????# | | ?????????????????????# t """ # #???????# | | ?????????????????????# ########???????# | | ?????????????????????#####+####??????????????# | | ?????????????????????????# #?????????????????##### | | ?????????????????????????# #???????######????????? | | ???????????????########### #???????# T #????????? | | ???????????????# " ## #???????# #????????? | | ???????????????# ! "# #?####### #??####### | | ???????????????# [* ## ### # #??# | | ?????????????? # ] != # + #??#""" | | ???????????? [ # = + # #??#""" | | ???????????+#### # # #??#""" | | ??????????????# ###### # #??# | | ??????????????# " #???# ##???????#""" | | ??????????????## "##???? #????????#""" | | ???????????????#"""""""""#?????? #????????#""" | +----------------------------------------------------+ Best States ------------- Heat Dissipation 25 Energy Generation 10 Energy Capacity 250 Matter Stores 281 Matter Capacity 300 Sight Range 16 Terrain Scan Density 10 Evasion (%) 55 Item Schematics ----------------- None Robot Schematics ------------------ None Fabricated ------------ Nothing Alien Tech Used ----------------- None Achievements -------------- None Challenges ------------ None Game ------ Seed DisruptorBeamMatrix Manual? 0 Play Time 00:08:07 Cumulative 2.1 hours Start 2024.04.03 @ 18:11:04 End 2024.04.03 @ 18:15:44 Sessions 1 Manual Loads 0 Difficulty Rogue Special Mode None Game No. 4 Rogue 4 Adventurer 0 Explorer 0 Win Type - Total 0 Types 0/0/0/0/0/0/0/0/0 Lore% 0 Gallery% 6 Achievement% 8 Wizard Run 0 Options --------- Layout 1 ASCII 0 Keyboard 0 Movement Mouse Keybinds 0 Fullscreen 1 Font 32/SmallcapsGlow Map View 50x35 Zoom Use 0% Tactical HUD 0 Map Filters NONE Filters NONE Steam 1 RUN: e5fb66b3-0eda-4499-8c09-1445a8165283